bitfinex/quotes_SOLUSD_20241019
["timestamp","ask_amount","ask_price","bid_price","bid_amount"]
[1729344860769,21.7218,154.73,154.65,6.57008484]
[1729344861146,21.7218,154.73,154.65,14.77320556]
[1729344865770,21.7218,154.73,154.66,8.20312072]
[1729344867977,21.7218,154.73,154.66,14.77320556]
[1729344868359,21.7218,154.73,154.66,8.20312072]
[1729344868978,21.7218,154.73,154.66,14.77320556]
[1729344869280,16.0803,154.73,154.66,14.77320556]
[1729344870973,16.0803,154.73,154.66,18.1774728]
[1729344873679,22.7182,154.73,154.66,18.1774728]
[1729344875179,22.7182,154.73,154.66,14.77320556]
[1729344875987,22.7182,154.73,154.66,8.20312072]
[1729344884687,0.6196105,154.77,154.68,39.515084]
[1729344884889,0.6196105,154.77,154.7,23.776884]
[1729344885075,0.6196105,154.77,154.72,23.776884]
[1729344885277,0.6196105,154.77,154.74,23.776884]
[1729344897388,0.6196105,154.77,154.73,25.69903478]
[1729344897694,0.6196105,154.77,154.73,6.57008484]
[1729344898280,0.6196105,154.77,154.69,15.7382]
[1729344898688,0.6196105,154.77,154.69,22.30828484]
[1729344898890,0.6196105,154.77,154.69,15.7382]
[1729344899279,0.6196105,154.77,154.69,24.32863379]
[1729344899679,0.6196105,154.77,154.7,32.36731779]
[1729344901709,0.6196105,154.77,154.7,8.59043379]
[1729344902804,0.6196105,154.77,154.69,6.57008484]
[1729344905992,0.6196105,154.77,154.68,6.60767764]
[1729344907718,0.6196105,154.77,154.68,15.19811143]
[1729344911014,0.6196105,154.77,154.68,21.76819627]
[1729344920110,0.6196105,154.77,154.68,15.19811143]
[1729344920914,0.6196105,154.77,154.68,21.76819627]
[1729344928126,0.6196105,154.77,154.68,31.53822316]
[1729344930204,0.6196105,154.77,154.68,28.16199627]
[1729344934950,0.6196105,154.77,154.68,21.59191143]
[1729344935155,0.6196105,154.77,154.69,6.57008484]
[1729344936429,0.6196105,154.77,154.7,15.9752]
[1729344939826,0.6196105,154.77,154.71,23.776884]
[1729344940843,0.6196105,154.77,154.71,30.34696884]
[1729344944236,0.6196105,154.77,154.71,23.776884]
[1729344944956,0.6196105,154.77,154.72,6.57008484]
[1729344950262,0.6196105,154.77,154.71,23.776884]
[1729344953349,0.6196105,154.77,154.71,38.93740263]
[1729344955767,0.6196105,154.77,154.72,15.16051863]
[1729344960963,0.6196105,154.77,154.72,8.59043379]
[1729344961145,0.6196105,154.77,154.72,15.16051863]
[1729344961762,0.6196105,154.77,154.73,23.776884]
[1729344965371,0.6196105,154.77,154.72,15.16051863]
[1729344965670,0.6196105,154.77,154.69,3.4620108]
[1729344965845,0.6196105,154.77,154.68,26.31289468]
[1729344966047,0.6196105,154.77,154.68,19.57156248]
[1729344968184,0.6196105,154.77,154.68,13.00147764]
[1729344971677,0.6196105,154.77,154.68,6.60767764]
[1729344979002,0.6196105,154.77,154.68,10.01517521]
[1729344981613,16.9749105,154.77,154.68,10.01517521]
[1729344990276,16.9749105,154.77,154.68,6.60767764]
[1729344995389,16.9749105,154.77,154.68,10.1115458]
[1729345000598,0.6196105,154.77,154.68,10.1115458]
[1729345000817,0.6196105,154.77,154.68,18.70197959]
[1729345005427,0.6196105,154.77,154.68,12.09430195]
[1729345015398,0.6196105,154.77,154.68,8.59043379]
[1729345015595,0.6196105,154.77,154.67,23.776884]
[1729345015902,0.6196105,154.77,154.67,30.34696884]
[1729345018004,0.6196105,154.77,154.68,6.57008484]
[1729345018208,0.6196105,154.77,154.68,12.4503868]
[1729345020231,0.6196105,154.77,154.68,21.04082059]
[1729345020914,0.6196105,154.77,154.68,19.0401868]
[1729345021114,0.6196105,154.77,154.69,8.59043379]
[1729345021428,0.6196105,154.77,154.7,6.57008484]
[1729345022632,0.6196105,154.77,154.71,20.0]
[1729345023312,0.6196105,154.77,154.71,35.16051863]
[1729345023527,0.6196105,154.77,154.72,6.57008484]
[1729345023835,0.6196105,154.77,154.73,20.0]
[1729345048626,0.6196105,154.77,154.73,23.41511627]
[1729345050520,0.6196105,154.77,154.73,20.0]
[1729345052241,0.6196105,154.77,154.74,16.1576]
[1729345052442,0.6196105,154.77,154.74,24.74803379]
[1729345056360,0.6196105,154.77,154.74,8.59043379]
[1729345056851,0.6196105,154.77,154.73,30.02856339]
[1729345058350,0.6196105,154.77,154.73,26.57008484]
[1729345059259,0.6196105,154.77,154.71,3.44468285]
[1729345059563,0.6196105,154.77,154.7,24.74803379]
[1729345061260,0.6196105,154.77,154.7,31.31811863]
[1729345062255,0.6196105,154.77,154.7,34.76716326]
[1729345068061,0.6196105,154.77,154.7,31.31811863]
[1729345071953,0.6196105,154.77,154.7,34.69633116]
[1729345074261,0.6196105,154.77,154.71,6.57008484]
[1729345074940,0.6196105,154.77,154.71,15.16051863]
[1729345076062,0.6196105,154.77,154.71,6.57008484]
[1729345076366,0.6196105,154.77,154.72,8.59043379]
[1729345082347,0.6196105,154.77,154.72,15.16051863]
[1729345085578,0.6196105,154.77,154.68,12.62356968]
[1729345085869,0.6196105,154.77,154.68,21.04082059]
[1729345087271,0.6196105,154.77,154.69,6.57008484]
[1729345087776,0.6196105,154.77,154.69,15.16051863]
[1729345087944,0.6196105,154.77,154.7,8.59043379]
[1729345093645,0.6196105,154.77,154.7,12.1003987]
[1729345100283,0.6196105,154.77,154.7,8.59043379]
[1729345100485,0.6196105,154.77,154.68,12.4503868]
[1729345100776,0.6196105,154.77,154.69,8.59043379]
[1729345100952,0.6196105,154.77,154.69,15.16051863]
[1729345106067,22.0393105,154.77,154.69,8.59043379]
[1729345113185,23.776884,154.76,154.69,8.59043379]
[1729345113391,23.776884,154.76,154.68,5.88030196]
[1729345121890,22.0393105,154.77,154.68,5.88030196]
[1729345122589,0.6196105,154.77,154.68,12.4503868]
[1729345123102,0.6196105,154.77,154.68,21.04082059]
[1729345125171,0.6196105,154.77,154.68,14.47073575]
[1729345129005,0.6196105,154.77,154.68,21.04082059]
[1729345132976,0.6196105,154.77,154.68,24.45302399]
[1729345140579,0.6196105,154.77,154.68,18.57272203]
[1729345142295,0.6196105,154.77,154.68,12.00263719]
[1729345143285,23.776884,154.76,154.68,12.00263719]
[1729345146892,23.776884,154.76,154.67,6.57008484]
[1729345147403,23.776884,154.76,154.66,15.077]
[1729345190805,23.776884,154.76,154.67,20.0]
[1729345196615,0.6196105,154.77,154.67,20.0]
[1729345197943,23.776884,154.76,154.67,20.0]
[1729345202024,30.238484,154.76,154.67,20.0]
[1729345203925,30.238484,154.76,154.66,15.077]
[1729345206445,23.776884,154.74,154.66,15.077]
[1729345220743,23.776884,154.71,154.62,15.0182]
[1729345220949,30.240584,154.71,154.62,15.0182]
[1729345221441,36.98299737,154.71,154.62,15.0182]
[1729345222442,49.91929737,154.71,154.62,15.0182]
[1729345222647,6.4645,154.69,154.62,15.0182]
[1729345222825,23.776884,154.68,154.62,15.0182]
[1729345224259,30.241884,154.68,154.62,15.0182]
[1729345224558,23.776884,154.66,154.58,15.0182]
[1729345226853,24.90146407,154.66,154.58,15.0182]
[1729345236156,23.776884,154.67,154.58,15.0182]
[1729345237268,19.4,154.71,154.58,21.87624207]
[1729345237432,19.4,154.71,154.59,15.0182]
[1729345237640,19.4,154.71,154.6,6.1568]
[1729345238764,23.776884,154.7,154.6,6.1568]
[1729345240455,23.776884,154.71,154.6,6.1568]
[1729345243768,35.59508343,154.73,154.6,13.01484207]
[1729345243975,35.59508343,154.73,154.61,23.18144207]
[1729345245283,23.776884,154.72,154.61,23.18144207]
[1729345245658,43.176884,154.72,154.61,23.18144207]
[1729345245851,23.776884,154.7,154.61,16.3234]
[1729345251677,30.240984,154.7,154.61,16.3234]
[1729345255176,43.176884,154.7,154.61,16.3234]
[1729345256377,23.776884,154.68,154.61,16.3234]
[1729345257258,23.776884,154.69,154.61,16.3234]
[1729345261180,49.641784,154.69,154.57,20.8031075]
[1729345261395,66.067884,154.69,154.57,20.8031075]
[1729345261687,23.776884,154.67,154.57,20.8031075]
[1729345264785,23.776884,154.68,154.57,20.8031075]
[1729345267067,23.776884,154.66,154.57,20.8031075]
[1729345272374,23.776884,154.66,154.57,15.7007]
[1729345280199,6.73241387,154.69,154.58,6.85804207]
[1729345280387,1.12397433,154.69,154.58,6.85804207]
[1729345281385,23.776884,154.68,154.58,6.85804207]
[1729345283695,23.776884,154.68,154.59,15.2114]
[1729345283897,23.776884,154.68,154.6,13.40804207]
[1729345286602,23.776884,154.68,154.6,6.55]
[1729345286782,23.776884,154.68,154.6,13.40804207]
[1729345292111,23.776884,154.68,154.61,6.85804207]
[1729345299603,28.37080553,154.73,154.61,6.85804207]
[1729345299913,23.776884,154.72,154.61,6.85804207]
[1729345304426,23.776884,154.72,154.6,10.00850205]
[1729345305428,23.776884,154.72,154.61,6.85804207]
[1729345308729,23.776884,154.72,154.62,15.6406]
[1729345309024,28.37080553,154.73,154.63,6.85804207]
[1729345309025,5.84610553,154.73,154.63,6.85804207]
[1729345310426,23.776884,154.72,154.63,6.85804207]
[1729345315841,23.776884,154.72,154.62,15.6406]
[1729345316514,23.776884,154.72,154.63,6.85804207]
[1729345325454,23.776884,154.72,154.62,15.6406]
[1729345326529,23.776884,154.72,154.63,6.85804207]
[1729345326935,5.84610553,154.73,154.65,15.0014]
[1729345327133,5.84610553,154.73,154.66,8.95656435]
[1729345327417,5.84610553,154.73,154.66,15.81460642]
[1729345327849,21.7695105,154.77,154.66,15.81460642]
[1729345328637,23.776884,154.76,154.66,15.81460642]
[1729345332244,23.776884,154.76,154.66,19.29982617]
[1729345332756,23.776884,154.76,154.66,12.4417841]
[1729345333455,23.776884,154.76,154.66,19.29982617]
[1729345335756,23.776884,154.76,154.66,15.81460642]
[1729345338749,23.776884,154.76,154.66,8.95656435]
[1729345340558,23.776884,154.76,154.66,19.22389545]
[1729345346561,23.776884,154.76,154.66,12.36585338]
[1729345348043,40.281884,154.76,154.65,15.0014]
[1729345348234,40.281884,154.76,154.65,18.53862372]
[1729345360071,40.281884,154.76,154.66,6.85804207]
[1729345365478,40.281884,154.76,154.65,15.0014]
[1729345366181,40.281884,154.76,154.65,23.09129768]
[1729345367382,23.776884,154.74,154.65,29.94933975]
[1729345367678,40.281884,154.76,154.65,29.94933975]
[1729345368664,41.40579236,154.76,154.65,29.94933975]
[1729345377388,41.40579236,154.76,154.65,23.09129768]
[1729345378899,60.80579236,154.76,154.65,23.09129768]
[1729345379271,67.26739236,154.76,154.65,23.09129768]
[1729345381888,23.776884,154.72,154.64,6.85804207]
[1729345382088,23.776884,154.72,154.62,16.0244]
[1729345388881,23.776884,154.72,154.63,6.5198]
[1729345389086,23.776884,154.72,154.64,16.4518]
[1729345411728,16.505,154.76,154.64,16.4518]
[1729345412222,16.505,154.76,154.65,6.85804207]
[1729345413407,23.776884,154.75,154.64,19.84358021]
[1729345413735,23.776884,154.75,154.65,6.85804207]
[1729345416604,23.776884,154.75,154.64,16.4518]
[1729345416799,23.776884,154.75,154.65,6.85804207]
[1729345419531,23.776884,154.75,154.64,16.4518]
[1729345420629,23.776884,154.75,154.65,6.85804207]
[1729345421331,23.776884,154.75,154.64,16.4518]
[1729345426518,23.776884,154.75,154.65,6.5871]
[1729345426833,23.776884,154.76,154.66,16.0352]
[1729345427718,23.776884,154.76,154.67,6.85822801]
[1729345430036,6.55642773,154.77,154.67,6.85822801]
[1729345430236,6.55642773,154.77,154.68,16.0352]
[1729345430475,6.55642773,154.77,154.69,6.85822801]
[1729345439243,6.55642773,154.77,154.69,14.91773458]
[1729345440333,23.776884,154.76,154.69,14.91773458]
[1729345441132,23.776884,154.76,154.69,8.05950657]
[1729345446442,6.55642773,154.77,154.69,8.05950657]
[1729345448442,6.55642773,154.77,154.69,14.35160657]
[1729345452250,0.6196105,154.77,154.69,14.35160657]
[1729345465661,0.6196105,154.77,154.69,17.88146419]
[1729345469847,0.6196105,154.77,154.7,8.05950657]
[1729345471032,0.6196105,154.77,154.7,14.91773458]
[1729345473251,0.6196105,154.77,154.71,28.56326077]
[1729345473567,0.6196105,154.77,154.72,8.05950657]
[1729345473773,0.6196105,154.77,154.72,14.91773458]
[1729345474446,0.6196105,154.77,154.72,6.85822801]
[1729345475755,0.6196105,154.77,154.71,21.70503276]
[1729345476167,0.6196105,154.77,154.71,29.76453933]
[1729345476544,0.6196105,154.77,154.71,36.62276734]
[1729345482960,0.6196105,154.77,154.71,28.56326077]
[1729345486162,0.6196105,154.77,154.71,21.70503276]
[1729345487276,0.6196105,154.77,154.71,29.76453933]
[1729345488180,0.6196105,154.77,154.72,8.05950657]
[1729345489666,0.6196105,154.77,154.73,6.85822801]
[1729345501789,0.6196105,154.77,154.72,8.05950657]
[1729345502166,0.6196105,154.77,154.71,21.70503276]
[1729345502587,0.6196105,154.77,154.71,28.56326077]
[1729345507497,0.6196105,154.77,154.72,6.85822801]
[1729345508604,0.6196105,154.77,154.71,21.70503276]
[1729345509697,0.6196105,154.77,154.72,6.85822801]
[1729345517795,0.6196105,154.77,154.71,21.70503276]
[1729345518000,0.6196105,154.77,154.71,28.56326077]
[1729345523704,0.6196105,154.77,154.71,21.70503276]
[1729345523891,0.6196105,154.77,154.71,28.56326077]
[1729345527304,0.6196105,154.77,154.72,6.85822801]
[1729345529817,0.6196105,154.77,154.71,21.70503276]
[1729345530019,0.6196105,154.77,154.72,6.85822801]
[1729345534018,0.6196105,154.77,154.72,14.95528291]
[1729345534201,0.6196105,154.77,154.73,6.85822801]
[1729345535409,0.6196105,154.77,154.72,8.0970549]
[1729345536712,0.6196105,154.77,154.73,6.85822801]
[1729345542526,0.6196105,154.77,154.74,23.9003549]
[1729345542902,0.6196105,154.77,154.75,6.85822801]
[1729345543204,0.6196105,154.77,154.75,14.95528291]
[1729345543527,0.6196105,154.77,154.76,8.0970549]
[1729345543700,0.6196105,154.77,154.76,14.95528291]
[1729345545811,0.6196105,154.77,154.76,38.73216691]
[1729345546811,0.6196105,154.77,154.76,54.53546691]
[1729345547814,0.6196105,154.77,154.76,60.98686691]
[1729345550042,0.6196105,154.77,154.76,54.1286389]
[1729345551724,0.6196105,154.77,154.76,60.98686691]
[1729345552907,0.6196105,154.77,154.76,64.43410835]
[1729345553829,0.6196105,154.77,154.76,60.98686691]
[1729345556937,0.6196105,154.77,154.76,37.20998291]
[1729345557138,0.6196105,154.77,154.76,14.95528291]
[1729345557317,0.6196105,154.77,154.76,6.85822801]
[1729345558528,0.6196105,154.77,154.72,22.53554022]
[1729345558730,0.6196105,154.77,154.72,15.8033]
[1729345560432,0.6196105,154.77,154.72,19.2141848]
[1729345560838,0.6196105,154.77,154.72,15.8033]
[1729345566937,0.6196105,154.77,154.72,19.32949379]
[1729345567539,22.52690548,154.81,154.72,19.32949379]
[1729345568742,22.52690548,154.81,154.73,20.0]
[1729345572438,24.16460891,154.85,154.73,28.09679079]
[1729345572739,23.776884,154.84,154.75,20.0]
[1729345574827,23.0417,154.85,154.75,20.0]
[1729345575032,23.776884,154.84,154.75,20.0]
[1729345575238,23.0417,154.85,154.75,20.0]
[1729345575436,23.0417,154.85,154.74,20.0]
[1729345575621,23.0417,154.85,154.76,20.0]
[1729345576927,36.72368215,154.89,154.77,35.2959]
[1729345577124,29.9897716,154.89,154.77,35.2959]
[1729345578146,23.776884,154.88,154.77,35.2959]
[1729345579931,23.776884,154.88,154.79,20.0]
[1729345580650,23.776884,154.88,154.78,20.0]
[1729345581441,23.0417,154.89,154.78,20.0]
[1729345585153,23.0417,154.89,154.79,6.55326245]
[1729345585325,23.0417,154.89,154.8,20.0]
[1729345602365,23.776884,154.88,154.8,20.0]
[1729345604866,23.776884,154.88,154.79,20.0]
[1729345605582,23.776884,154.88,154.79,28.09679079]
[1729345606173,23.776884,154.88,154.79,34.65005324]
[1729345607070,23.776884,154.88,154.81,20.0]
[1729345607771,23.0417,154.89,154.81,20.0]
[1729345608752,23.776884,154.91,154.81,20.0]
[1729345610876,0.6196105,154.92,154.83,20.0]
[1729345619082,0.6196105,154.92,154.83,28.09679079]
[1729345619778,0.6196105,154.92,154.83,34.65005324]
[1729345626082,0.6196105,154.92,154.85,20.0]
[1729345626292,0.6196105,154.92,154.87,20.0]
[1729345632769,0.6196105,154.92,154.87,35.94096508]
[1729345634771,0.6196105,154.92,154.87,29.38770263]
[1729345636290,0.6196105,154.92,154.87,28.09679079]
[1729345637696,0.6196105,154.92,154.87,20.0]
[1729345638075,0.6196105,154.92,154.86,6.55326245]
[1729345638287,0.6196105,154.92,154.83,8.09679079]
[1729345641789,23.5653105,154.92,154.83,8.09679079]
[1729345655499,0.6196105,154.92,154.83,8.09679079]
[1729345657209,0.6196105,154.92,154.83,14.65005324]
[1729345664710,0.6196105,154.92,154.83,8.09679079]
[1729345665106,0.6196105,154.92,154.83,14.65005324]
[1729345667995,0.6196105,154.92,154.83,18.03689074]
[1729345670713,0.6196105,154.92,154.83,11.48362829]
[1729345670909,0.6196105,154.92,154.83,18.03689074]
[1729345673993,0.6196105,154.92,154.83,11.48362829]
[1729345674192,0.6196105,154.92,154.83,18.03689074]
[1729345679913,0.6196105,154.92,154.83,11.48362829]
[1729345680727,0.6196105,154.92,154.83,18.03689074]
[1729345692329,0.6196105,154.92,154.84,30.33014645]
[1729345692524,0.6196105,154.92,154.84,38.42693724]
[1729345694826,0.6196105,154.92,154.84,31.87367479]
[1729345697935,0.6196105,154.92,154.84,8.09679079]
[1729345700209,0.6196105,154.92,154.85,23.776884]
[1729345715247,0.6196105,154.92,154.86,16.3264]
[1729345715423,0.6196105,154.92,154.87,23.776884]
[1729345715635,0.6196105,154.92,154.88,1.29083608]
[1729345716844,0.6196105,154.92,154.87,30.33014645]
[1729345717030,0.6196105,154.92,154.87,6.55326245]
[1729345724760,0.6196105,154.92,154.86,16.3264]
[1729345736474,0.6196105,154.92,154.86,3.38205235]
[1729345736661,0.6196105,154.92,154.86,6.37973431]
[1729345751263,22.2711105,154.92,154.86,6.37973431]
[1729345751871,23.776884,154.91,154.86,6.37973431]
[1729345758485,23.776884,154.91,154.82,16.0321]
[1729345766382,23.776884,154.91,154.8,6.55326245]
[1729345766682,23.776884,154.91,154.78,12.87116245]
[1729345766882,23.776884,154.91,154.79,8.09679079]
[1729345768285,23.776884,154.91,154.8,15.604]
[1729345768475,23.776884,154.91,154.8,30.39534845]
[1729345769662,22.2711105,154.92,154.8,30.39534845]
[1729345770264,22.2711105,154.92,154.8,36.9486109]
[1729345771485,23.776884,154.91,154.8,36.9486109]
[1729345774078,22.2711105,154.92,154.81,23.776884]
[1729345783209,22.2711105,154.92,154.81,27.21311486]
[1729345792601,22.2711105,154.92,154.81,23.776884]
[1729345815612,30.232384,154.91,154.8,28.85182011]
[1729345815803,23.776884,154.91,154.8,28.85182011]
[1729345815996,22.2711105,154.92,154.8,6.69455766]
[1729345815997,23.776884,154.88,154.8,6.69455766]
[1729345821017,24.89983048,154.88,154.8,6.69455766]
[1729345823019,15.4144,154.87,154.8,6.69455766]
[1729345823318,23.776884,154.86,154.8,6.69455766]
[1729345824114,23.776884,154.86,154.76,16.5234]
[1729345824308,23.776884,154.84,154.76,16.5234]
[1729345828326,23.776884,154.85,154.76,16.5234]
[1729345832200,23.776884,154.83,154.74,6.4111]
[1729345832420,23.776884,154.82,154.72,25.29137573]
[1729345832922,23.776884,154.79,154.72,25.29137573]
[1729345833902,23.776884,154.8,154.72,25.29137573]
[1729345838011,23.776884,154.8,154.72,16.0892]
[1729345845032,23.776884,154.82,154.72,16.0892]
[1729345868520,23.776884,154.82,154.72,24.18599079]
[1729345877145,23.776884,154.82,154.72,30.73925324]
[1729345878047,23.776884,154.82,154.72,24.18599079]
[1729345878243,23.776884,154.82,154.72,30.73925324]
[1729345879649,23.776884,154.82,154.72,34.27269122]
[1729345880033,23.776884,154.82,154.72,30.73925324]
[1729345883940,23.776884,154.82,154.72,24.18599079]
[1729345894047,23.776884,154.82,154.72,30.73925324]
[1729345896062,23.776884,154.82,154.72,24.18599079]
[1729345896463,23.776884,154.82,154.72,30.73925324]
[1729345904877,23.776884,154.82,154.72,34.12160489]
[1729345905078,23.776884,154.82,154.72,27.56834244]
[1729345905268,23.776884,154.82,154.72,34.12160489]
[1729345907668,23.776884,154.82,154.72,30.73925324]
[1729345908865,6.5246,154.81,154.72,6.55326245]
[1729345909176,23.776884,154.8,154.71,7.84212372]
[1729345911671,23.776884,154.8,154.71,14.26092372]
[1729345911884,23.776884,154.82,154.72,15.387]
[1729345912199,16.0387,154.83,154.72,30.03705324]
[1729345913386,23.776884,154.82,154.72,30.03705324]
[1729345916701,23.776884,154.8,154.71,7.84212372]
[1729345918774,23.776884,154.78,154.71,7.84212372]
[1729345921191,23.776884,154.78,154.68,23.48379079]
[1729345923383,23.776884,154.78,154.68,15.387]
[1729345925080,30.237584,154.78,154.68,15.387]
[1729345925288,30.238584,154.76,154.65,15.8074]
[1729345929504,23.776884,154.76,154.65,15.8074]
[1729345941111,23.776884,154.78,154.66,6.6157]
[1729345941291,23.776884,154.78,154.67,15.5262]
[1729345944011,23.776884,154.78,154.67,23.62299079]
[1729345944391,23.776884,154.78,154.67,30.17625324]
[1729345944905,6.0019,154.81,154.69,6.6157]
[1729345945098,24.37289005,154.83,154.69,6.6157]
[1729345945099,7.83839005,154.83,154.69,6.6157]
[1729345945300,6.71484544,154.83,154.72,23.776884]
[1729345945505,1.1231255,154.87,154.72,30.33014645]
[1729345945903,1.1231255,154.87,154.72,38.42693724]
[1729345946300,22.5364,154.88,154.74,15.5262]
[1729345947296,23.776884,154.87,154.75,6.6157]
[1729345947615,22.5364,154.88,154.75,21.26575324]
[1729345949287,23.776884,154.87,154.75,21.26575324]
[1729345956207,23.776884,154.87,154.75,14.71249079]
[1729345966106,23.776884,154.87,154.75,21.26575324]
[1729345966316,23.776884,154.87,154.75,14.71249079]
[1729345966826,23.776884,154.87,154.75,21.26575324]
[1729345973530,23.776884,154.87,154.75,14.71249079]
[1729345980431,23.776884,154.87,154.75,21.26575324]
[1729345983714,30.234184,154.87,154.75,21.26575324]
[1729345984337,30.234184,154.87,154.75,14.71249079]
[1729345997631,23.776884,154.87,154.75,14.71249079]
[1729346000870,23.776884,154.87,154.75,21.26575324]
[1729346001525,23.776884,154.87,154.76,15.3701]
[1729346008149,23.776884,154.87,154.76,23.46689079]
[1729346016965,23.776884,154.87,154.76,26.90906009]
[1729346021259,23.776884,154.87,154.77,14.65005324]
[1729346026469,23.776884,154.87,154.77,8.09679079]
[1729346040267,23.776884,154.87,154.77,14.65005324]
[1729346048082,23.776884,154.87,154.77,8.09679079]
[1729346088820,23.776884,154.87,154.76,21.92336245]
[1729346089015,30.233884,154.87,154.76,21.92336245]
[1729346089216,6.4574,154.86,154.76,15.3701]
[1729346089533,23.776884,154.85,154.76,15.3701]
[1729346090946,23.776884,154.86,154.76,15.3701]
[1729346110638,30.234684,154.86,154.76,15.3701]
[1729346112723,23.776884,154.84,154.76,15.3701]
[1729346135428,23.776884,154.84,154.77,20.0]
[1729346145441,23.776884,154.85,154.77,20.0]
[1729346146155,23.776884,154.86,154.77,20.0]
[1729346169858,30.234484,154.86,154.77,20.0]
[1729346182487,23.776884,154.86,154.77,20.0]
[1729346185794,30.234384,154.86,154.77,20.0]
[1729346188687,23.776884,154.86,154.77,20.0]
[1729346188890,23.776884,154.84,154.77,20.0]
[1729346204907,23.776884,154.82,154.76,15.3701]
[1729346211083,23.776884,154.85,154.76,15.3701]
[1729346211404,32.74991144,154.85,154.76,15.3701]
[1729346232524,6.4582,154.84,154.76,15.3701]
[1729346232822,32.74991144,154.85,154.76,15.3701]
[1729346253354,23.776884,154.83,154.76,15.3701]
[1729346261772,23.776884,154.83,154.77,20.0]
[1729346269346,23.776884,154.84,154.77,20.0]
[1729346317294,23.776884,154.84,154.76,15.3701]
[1729346317617,45.399484,154.84,154.74,7.43727711]
[1729346317799,45.399484,154.84,154.73,6.55326245]
[1729346323394,45.399484,154.84,154.72,23.0694019]
[1729346372029,45.399484,154.84,154.72,26.53902205]
[1729346375537,45.399484,154.84,154.72,19.11072015]
[1729346376250,45.399484,154.84,154.72,15.6411]
[1729346379440,45.399484,154.84,154.72,19.07738188]
[1729346379749,45.399484,154.84,154.72,15.6411]
[1729346398160,45.399484,154.84,154.72,19.10554421]
[1729346404064,22.0295,154.88,154.74,15.1394]
[1729346404269,22.0295,154.88,154.76,15.1394]
[1729346405345,23.776884,154.87,154.76,15.1394]
[1729346414247,23.776884,154.87,154.77,6.3615]
[1729346421252,22.3028,154.89,154.77,37.06237392]
[1729346421468,22.3028,154.89,154.77,43.61535758]
[1729346431762,23.776884,154.9,154.78,16.2767]
[1729346432865,23.776884,154.9,154.78,23.7050019]
[1729346433484,23.776884,154.9,154.78,30.25798556]
[1729346436889,0.3303174,154.9,154.79,30.25798556]
[1729346437385,0.3303174,154.9,154.8,6.3607]
[1729346440186,0.3303174,154.9,154.81,16.2767]
[1729346441486,0.3303174,154.9,154.81,22.82968366]
[1729346446068,0.3303174,154.9,154.81,26.19743445]
[1729346449683,0.3303174,154.9,154.81,33.62573635]
[1729346450585,0.3303174,154.9,154.82,20.0]
[1729346486504,0.3303174,154.9,154.82,33.98128556]
[1729346486719,0.3303174,154.9,154.84,20.0]
[1729346487014,0.3303174,154.9,154.84,27.4283019]
[1729346487229,0.3303174,154.9,154.84,33.98128556]
[1729346488898,0.3303174,154.9,154.85,7.4283019]
[1729346489306,0.3303174,154.9,154.86,20.0]
[1729346492825,0.3303174,154.9,154.86,7.4283019]
[1729346493214,0.3303174,154.9,154.84,6.55298366]
[1729346495727,0.3303174,154.9,154.84,13.98128556]
[1729346495925,0.3303174,154.9,154.85,7.4283019]
[1729346497727,0.3303174,154.9,154.86,16.2629]
[1729346498105,0.3303174,154.9,154.86,23.6912019]
[1729346508826,0.3303174,154.9,154.87,30.193084]
[1729346509009,0.3303174,154.9,154.89,23.776884]
[1729346509207,0.3303174,154.9,154.89,31.62042985]
[1729346509440,0.3303174,154.9,154.89,25.06744619]
[1729346510111,0.3303174,154.9,154.89,23.776884]
[1729346510812,0.3303174,154.9,154.89,30.32986766]
[1729346515120,0.3303174,154.9,154.89,33.76479216]
[1729346518222,0.3303174,154.9,154.89,30.32986766]
[1729346518833,0.3303174,154.9,154.89,37.75867092]
[1729346523044,0.3303174,154.9,154.89,41.14617779]
[1729346530755,0.6334754,155.01,154.89,67.21839541]
[1729346531055,0.6334754,155.01,154.91,23.776884]
[1729346531254,0.6334754,155.01,154.92,6.55298366]
[1729346534736,0.6334754,155.01,154.93,23.776884]
[1729346535044,0.6334754,155.01,154.93,31.60797944]
[1729346536536,0.6334754,155.01,154.95,23.776884]
[1729346542954,0.6334754,155.01,154.94,22.72478366]
[1729346544567,0.6334754,155.01,154.94,16.1718]
[1729346544766,0.6334754,155.01,154.94,22.72478366]
[1729346549184,0.6334754,155.01,154.94,30.15358692]
[1729346549388,0.6334754,155.01,154.95,37.75867092]
[1729346549966,0.6334754,155.01,154.95,31.20568726]
[1729346550670,0.6334754,155.01,154.95,37.75867092]